fUST/lending_fUST_20260501
["ID","MTS","AMOUNT","RATE_DAILY","PERIOD"]
[421423539,1777621846000,-45.16862186,9.424e-05,2]
[421423543,1777621846000,-500.0,9.424e-05,2]
[421423545,1777621846000,-431.75775588,9.424e-05,2]
[421423546,1777621846000,-538.0,9.424e-05,2]
[421423537,1777621846000,-500.0,9.424e-05,2]
[421423542,1777621846000,-417.9954656,9.424e-05,2]
[421423540,1777621846000,-500.0,9.424e-05,2]
[421423541,1777621846000,-500.0,9.424e-05,2]
[421423544,1777621846000,-500.0,9.424e-05,2]
[421423666,1777621885000,242.728052,6.565e-05,2]
[421423664,1777621885000,242.728052,5.968e-05,2]
[421423663,1777621885000,242.728052,5.67e-05,2]
[421423665,1777621885000,242.728052,6.266e-05,2]
[421423670,1777621886000,242.728052,7.758e-05,2]
[421423669,1777621886000,242.728052,7.46e-05,2]
[421423668,1777621886000,242.728052,7.162e-05,2]
[421423667,1777621886000,242.728052,6.863e-05,2]
[421423688,1777622041000,5000.0,8.01e-05,2]
[421423689,1777622064000,5000.0,8.01e-05,2]
[421423691,1777622086000,5000.0,8.01e-05,2]
[421423697,1777622108000,5000.0,8.01e-05,2]
[421423698,1777622130000,5000.0,8.01e-05,2]
[421423699,1777622152000,5000.0,8.01e-05,2]
[421423700,1777622175000,5000.0,8.01e-05,2]
[421423701,1777622197000,5000.0,8.01e-05,2]
[421423702,1777622219000,5000.0,8.01e-05,2]
[421423703,1777622241000,5000.0,8.01e-05,2]
[421423704,1777622264000,5000.0,8.01e-05,2]
[421423705,1777622285000,5000.0,8.01e-05,2]
[421423706,1777622308000,5000.0,8.01e-05,2]
[421423707,1777622330000,5000.0,8.01e-05,2]
[421423708,1777622351000,411.75434679,8.01e-05,2]
[421423709,1777622431000,200.0,0.00018889,120]
[421423710,1777622454000,-242.728052,8.057e-05,2]
[421423711,1777622477000,-226.83381402,8.131e-05,2]
[421423712,1777622500000,-242.728052,8.355e-05,2]
[421423713,1777622501000,200.0,0.00020612,120]
[421423714,1777622518000,-242.728052,8.654e-05,2]
[421423715,1777622536000,-242.728052,8.952e-05,2]
[421423717,1777622559000,200.0,0.00021353,120]
[421423716,1777622559000,-242.728052,9.25e-05,2]
[421423718,1777622577000,-300.0,9.424e-05,2]
[421423719,1777622850000,200.0,0.00020717,120]
[421423741,1777623030000,200.0,0.00021835,120]
[421423763,1777623032000,-899.02365167,9.383e-05,2]
[421423909,1777623040000,-222.29713773,9.404e-05,2]
[421423907,1777623040000,-2208.59400853,9.383e-05,2]
[421423913,1777623040000,-300.0,9.424e-05,2]
[421423911,1777623040000,-300.0,9.424e-05,2]
[421423915,1777623040000,-6855.87471478,9.425e-05,2]
[421423917,1777623040000,-841.52588397,9.425e-05,2]
[421423918,1777623040000,-23790.55009161,9.425e-05,2]
[421423914,1777623040000,-12400.10885374,9.425e-05,2]
[421423916,1777623040000,-1525.57541363,9.425e-05,2]
[421423955,1777623043000,-617.46398293,0.0001,2]
[421423925,1777623043000,-652.25,9.425e-05,2]
[421423928,1777623043000,-242.728052,9.549e-05,2]
[421423930,1777623043000,-500.0,9.609e-05,2]
[421423929,1777623043000,-465.09485015,9.609e-05,2]
[421423932,1777623043000,-407.31233434,9.609e-05,2]
[421423933,1777623043000,-357.78020496,9.61e-05,2]
[421423935,1777623043000,-300.0,9.612e-05,2]
[421423931,1777623043000,-500.0,9.609e-05,2]
[421423936,1777623043000,-300.0,9.612e-05,2]
[421423934,1777623043000,-300.0,9.612e-05,2]
[421423937,1777623043000,-300.0,9.612e-05,2]
[421423939,1777623043000,-300.0,9.612e-05,2]
[421423938,1777623043000,-300.0,9.612e-05,2]
[421423927,1777623043000,-499.999999,9.49e-05,2]
[421423942,1777623043000,-300.0,9.612e-05,2]
[421423940,1777623043000,-300.0,9.612e-05,2]
[421423954,1777623043000,-311.54838996,0.0001,2]
[421423950,1777623043000,-500.0,9.612e-05,2]
[421423953,1777623043000,-141.45161004,9.847e-05,2]
[421423951,1777623043000,-101.27644196,9.847e-05,2]
[421423947,1777623043000,-300.0,9.612e-05,2]
[421423926,1777623043000,-1668.15464668,9.425e-05,2]
[421423949,1777623043000,-600.0,9.612e-05,2]
[421423946,1777623043000,-300.0,9.612e-05,2]
[421423945,1777623043000,-300.0,9.612e-05,2]
[421423944,1777623043000,-300.0,9.612e-05,2]
[421423943,1777623043000,-300.0,9.612e-05,2]
[421423948,1777623043000,-300.0,9.612e-05,2]
[421423941,1777623043000,-300.0,9.612e-05,2]
[421423982,1777623046000,-4393.82117959,0.0001,2]
[421423980,1777623046000,-984.7182516,0.0001,2]
[421423989,1777623047000,-242.728052,0.00011339,2]
[421423991,1777623047000,-864.0,0.00011631,2]
[421423983,1777623047000,-2799.87668218,0.0001,2]
[421423988,1777623047000,-242.728052,0.00011041,2]
[421423985,1777623047000,-242.728052,0.00010444,2]
[421423990,1777623047000,-262.31062253,0.00011404,2]
[421423984,1777623047000,-242.728052,0.00010146,2]
[421423986,1777623047000,-720.0,0.00010574,2]
[421423987,1777623047000,-242.728052,0.00010743,2]
[421423992,1777623047000,-1000.0,0.00012794,2]
[421423999,1777623047000,-500.0,0.00013698,2]
[421423995,1777623047000,-1458.73710574,0.000129,2]
[421423997,1777623047000,-500.0,0.00013698,2]
[421423998,1777623047000,-500.0,0.00013698,2]
[421424001,1777623047000,-500.0,0.00013698,2]
[421423996,1777623047000,-302.32410732,0.00013404,2]
[421424000,1777623047000,-500.0,0.00013698,2]
[421424002,1777623047000,-500.0,0.00013698,2]
[421424003,1777623047000,-500.0,0.00013698,2]
[421424004,1777623047000,-297.6788406,0.00013698,2]
[421423994,1777623047000,-1458.73710574,0.000129,2]
[421423993,1777623047000,-1458.73710578,0.000129,2]
[421424006,1777623090000,200.0,0.0001982,120]
[421424007,1777623150000,200.0,0.00021256,120]
[421424037,1777623450000,200.0,0.00020919,120]
[421424038,1777623510000,200.0,0.00020691,120]
[421424047,1777623690000,200.0,0.00020367,120]
[421424079,1777623863000,2032.95,0.00021918,120]
[421424080,1777623870000,200.0,0.0002176,120]
[421424083,1777624075000,5000.0,0.00021918,120]
[421424137,1777624196000,148012.70498284,0.000219,120]
[421424138,1777624200000,389.63,0.00021918,120]
[421424164,1777624232000,-151.0,0.00013699,2]
[421424157,1777624232000,-214.67601815,0.00012139,2]
[421424153,1777624232000,-3511.21336951,0.00010715,2]
[421424155,1777624232000,-4287.36562362,0.00010823,2]
[421424151,1777624232000,-945.39860791,0.00010715,2]
[421424148,1777624232000,-2192.48212691,0.00010608,2]
[421424150,1777624232000,-527.0,0.00010608,2]
[421424154,1777624232000,-300.0,0.00010822,2]
[421424146,1777624232000,-908.06644971,0.00010608,2]
[421424149,1777624232000,-967.77653547,0.00010608,2]
[421424147,1777624232000,-931.67488791,0.00010608,2]
[421424152,1777624232000,-543.38802258,0.00010715,2]
[421424156,1777624232000,-212.0305998,0.00010932,2]
[421424162,1777624232000,-500.0,0.00013698,2]
[421424160,1777624232000,-500.0,0.00013698,2]
[421424163,1777624232000,-500.0,0.00013699,2]
[421424169,1777624232000,-151.0,0.00013699,2]
[421424173,1777624232000,-151.0,0.00013699,2]
[421424168,1777624232000,-151.0,0.00013699,2]
[421424166,1777624232000,-151.0,0.00013699,2]
[421424171,1777624232000,-151.0,0.00013699,2]
[421424170,1777624232000,-151.0,0.00013699,2]
[421424172,1777624232000,-151.0,0.00013699,2]
[421424165,1777624232000,-151.0,0.00013699,2]
[421424161,1777624232000,-269.16933368,0.00013698,2]
[421424158,1777624232000,-500.0,0.00013698,2]
[421424159,1777624232000,-501.24141859,0.00013698,2]
[421424167,1777624232000,-151.0,0.00013699,2]
[421424195,1777624233000,-151.0,0.00013699,2]
[421424190,1777624233000,-151.0,0.00013699,2]
[421424201,1777624233000,-151.0,0.00013699,2]
[421424193,1777624233000,-151.0,0.00013699,2]
[421424198,1777624233000,-151.0,0.00013699,2]
[421424199,1777624233000,-151.0,0.00013699,2]
[421424200,1777624233000,-151.0,0.00013699,2]
[421424203,1777624233000,-151.0,0.00013699,2]
[421424197,1777624233000,-151.0,0.00013699,2]
[421424213,1777624233000,-578.75664502,0.00013973,2]
[421424202,1777624233000,-151.0,0.00013699,2]
[421424206,1777624233000,-151.0,0.00013699,2]
[421424204,1777624233000,-151.0,0.00013699,2]
[421424192,1777624233000,-151.0,0.00013699,2]
[421424196,1777624233000,-151.0,0.00013699,2]
[421424191,1777624233000,-151.0,0.00013699,2]
[421424176,1777624233000,-151.0,0.00013699,2]
[421424189,1777624233000,-151.0,0.00013699,2]
[421424205,1777624233000,-151.0,0.00013699,2]
[421424174,1777624233000,-151.0,0.00013699,2]
[421424175,1777624233000,-151.0,0.00013699,2]
[421424180,1777624233000,-151.0,0.00013699,2]
[421424183,1777624233000,-151.0,0.00013699,2]
[421424177,1777624233000,-151.0,0.00013699,2]
[421424185,1777624233000,-151.0,0.00013699,2]
[421424188,1777624233000,-151.0,0.00013699,2]
[421424179,1777624233000,-151.0,0.00013699,2]
[421424187,1777624233000,-151.0,0.00013699,2]
[421424178,1777624233000,-151.0,0.00013699,2]
[421424181,1777624233000,-151.0,0.00013699,2]
[421424186,1777624233000,-151.0,0.00013699,2]
[421424182,1777624233000,-151.0,0.00013699,2]
[421424184,1777624233000,-151.0,0.00013699,2]
[421424194,1777624233000,-151.0,0.00013699,2]
[421424208,1777624233000,-151.0,0.00013699,2]
[421424215,1777624233000,-500.0,0.00014098,2]
[421424210,1777624233000,-151.0,0.00013699,2]
[421424235,1777624233000,-537.6845,0.00016179,2]
[421424232,1777624233000,-151.0,0.00016045,2]
[421424234,1777624233000,-162.380719,0.00016179,2]
[421424236,1777624233000,-13.79542424,0.00016179,2]
[421424233,1777624233000,-291.95938469,0.00016139,2]
[421424231,1777624233000,-600.0,0.00015932,2]
[421424238,1777624233000,-6.82762752,0.00016179,2]
[421424237,1777624233000,-431.40734176,0.00016179,2]
[421424241,1777624233000,-1674.77703456,0.00016179,2]
[421424211,1777624233000,-152.21886743,0.00013699,2]
[421424240,1777624233000,-475.96096544,0.00016179,2]
[421424243,1777624233000,-578.20924308,0.00016289,2]
[421424245,1777624233000,-433.01406935,0.00016399,2]
[421424244,1777624233000,-599.60298507,0.00016344,2]
[421424242,1777624233000,-557.5788265,0.00016234,2]
[421424230,1777624233000,-410.37411205,0.00015213,2]
[421424229,1777624233000,-45.71312305,0.00015213,2]
[421424239,1777624233000,-530.85687248,0.00016179,2]
[421424228,1777624233000,-456.0872351,0.00015213,2]
[421424212,1777624233000,-1000.0,0.00013699,2]
[421424209,1777624233000,-151.0,0.00013699,2]
[421424207,1777624233000,-151.0,0.00013699,2]
[421424214,1777624233000,-212.0305998,0.00014041,2]
[421424225,1777624233000,-253.31770142,0.00014139,2]
[421424217,1777624233000,-500.0,0.00014098,2]
[421424220,1777624233000,-500.0,0.00014098,2]
[421424218,1777624233000,-500.0,0.00014098,2]
[421424223,1777624233000,-500.0,0.00014098,2]
[421424216,1777624233000,-500.0,0.00014098,2]
[421424219,1777624233000,-500.0,0.00014098,2]
[421424222,1777624233000,-500.0,0.00014098,2]
[421424224,1777624233000,-521.57023988,0.00014098,2]
[421424227,1777624233000,-325.5777583,0.00015213,2]
[421424221,1777624233000,-500.0,0.00014098,2]
[421424226,1777624233000,-500.0,0.00014839,2]
[421424268,1777624240000,-151.0,0.00016438,2]
[421424264,1777624240000,-152.428243,0.00016438,2]
[421424266,1777624240000,-1232.050523,0.00016438,2]
[421424267,1777624240000,-1232.050523,0.00016438,2]
[421424282,1777624240000,-151.399605,0.00016438,2]
[421424271,1777624240000,-151.0,0.00016438,2]
[421424288,1777624240000,-209.23716,0.00016438,2]
[421424280,1777624240000,-151.0,0.00016438,2]
[421424262,1777624240000,-151.0,0.00016438,2]
[421424263,1777624240000,-151.0,0.00016438,2]
[421424261,1777624240000,-151.0,0.00016438,2]
[421424255,1777624240000,-401.029797,0.00016438,2]
[421424259,1777624240000,-151.0,0.00016438,2]
[421424258,1777624240000,-151.0,0.00016438,2]
[421424257,1777624240000,-401.029797,0.00016438,2]
[421424256,1777624240000,-401.029797,0.00016438,2]
[421424252,1777624240000,-151.0,0.00016438,2]
[421424250,1777624240000,-568.07461535,0.00016438,2]
[421424254,1777624240000,-401.029797,0.00016438,2]
[421424253,1777624240000,-151.0,0.00016438,2]
[421424251,1777624240000,-151.0,0.00016438,2]
[421424249,1777624240000,-188.77422617,0.00016399,2]
[421424269,1777624240000,-1232.050523,0.00016438,2]
[421424260,1777624240000,-151.0,0.00016438,2]
[421424284,1777624240000,-151.0,0.00016438,2]
[421424293,1777624240000,-209.23716,0.00016438,2]
[421424274,1777624240000,-151.0,0.00016438,2]
[421424310,1777624240000,-151.0,0.0001644,2]
[421424308,1777624240000,-151.0,0.0001644,2]
[421424311,1777624240000,-1232.050523,0.0001644,2]
[421424309,1777624240000,-151.0,0.0001644,2]
[421424312,1777624240000,-508.75037027,0.0001644,2]
[421424307,1777624240000,-151.0,0.0001644,2]
[421424306,1777624240000,-151.0,0.0001644,2]
[421424303,1777624240000,-398.851825,0.00016438,2]
[421424302,1777624240000,-398.851825,0.00016438,2]
[421424300,1777624240000,-398.851825,0.00016438,2]
[421424301,1777624240000,-398.851825,0.00016438,2]
[421424299,1777624240000,-398.851825,0.00016438,2]
[421424295,1777624240000,-209.23716,0.00016438,2]
[421424297,1777624240000,-222.308108,0.00016438,2]
[421424296,1777624240000,-151.0,0.00016438,2]
[421424304,1777624240000,-151.0,0.00016438,2]
[421424305,1777624240000,-500.0,0.0001644,2]
[421424294,1777624240000,-209.23716,0.00016438,2]
[421424292,1777624240000,-209.23716,0.00016438,2]
[421424291,1777624240000,-209.23716,0.00016438,2]
[421424290,1777624240000,-209.23716,0.00016438,2]
[421424286,1777624240000,-151.0,0.00016438,2]
[421424289,1777624240000,-209.23716,0.00016438,2]
[421424298,1777624240000,-398.851825,0.00016438,2]
[421424277,1777624240000,-1232.050523,0.00016438,2]
[421424313,1777624241000,-398.851825,0.00016438,2]
[421424314,1777624241000,-398.851825,0.00016438,2]
[421424315,1777624241000,-438.69401523,0.0001644,2]
[421424347,1777624249000,52097.06892982,7.6e-05,2]
[421424334,1777624249000,-1232.050523,0.0001644,2]
[421424333,1777624249000,-284.6061375,0.0001644,2]
[421424340,1777624249000,-151.0,0.00016441,2]
[421424335,1777624249000,-1232.050523,0.0001644,2]
[421424336,1777624249000,-340.264729,0.00016441,2]
[421424341,1777624249000,-151.0,0.00016441,2]
[421424337,1777624249000,-340.264729,0.00016441,2]
[421424338,1777624249000,-340.264729,0.00016441,2]
[421424339,1777624249000,-340.264729,0.00016441,2]
[421424344,1777624249000,-480.577528,0.00016441,2]
[421424345,1777624249000,-480.577528,0.00016441,2]
[421424346,1777624249000,-287.7079931,0.00016441,2]
[421424343,1777624249000,-480.577528,0.00016441,2]
[421424342,1777624249000,-151.0,0.00016441,2]
[421424562,1777624560000,16883.30360165,0.0002191,120]
[421424581,1777624649000,-245.46463529,8.091e-05,2]
[421424582,1777624823000,5000.0,8.01e-05,2]
[421424583,1777624832000,3784.98153416,8.01e-05,2]
[421424584,1777624847000,5000.0,8.01e-05,2]
[421424615,1777625180000,1000.0,0.00021918,120]
[421424664,1777625340000,2000.0,0.00021918,120]
[421424666,1777625432000,-216.95002103,8.131e-05,2]
[421424669,1777625432000,-300.0,8.504e-05,2]
[421424672,1777625432000,-300.0,8.504e-05,2]
[421424667,1777625432000,-496.27940917,8.503e-05,2]
[421424671,1777625432000,-140.45822332,8.504e-05,2]
[421424668,1777625432000,-703.72059083,8.503e-05,2]
[421424673,1777625432000,-676.97696714,8.505e-05,2]
[421424670,1777625432000,-159.54177668,8.504e-05,2]
[421424729,1777625439000,-469.48671441,0.0001509,2]
[421424705,1777625439000,-587.0,0.0001029,2]
[421424706,1777625439000,-864.0,0.00010496,2]
[421424707,1777625439000,-151.0,0.00010496,2]
[421424727,1777625439000,-334.10303238,0.00014131,2]
[421424717,1777625439000,-500.0,0.00013698,2]
[421424709,1777625439000,-251.14791539,0.00010744,2]
[421424710,1777625439000,-152.0,0.00011493,7]
[421424713,1777625439000,-295.0520286,0.00012131,2]
[421424712,1777625439000,-1000.0,0.00011545,2]
[421424716,1777625439000,-500.0,0.00013698,2]
[421424714,1777625439000,-1000.0,0.000127,2]
[421424711,1777625439000,-152.0,0.00011493,7]
[421424718,1777625439000,-500.0,0.00013698,2]
[421424719,1777625439000,-500.0,0.00013698,2]
[421424720,1777625439000,-500.0,0.00013698,2]
[421424723,1777625439000,-832.48803372,0.00013699,2]
[421424721,1777625439000,-500.0,0.00013698,2]
[421424722,1777625439000,-500.0,0.00013698,2]
[421424725,1777625439000,-1000.0,0.0001397,2]
[421424728,1777625439000,-537.6845,0.0001509,2]
[421424724,1777625439000,-167.51196628,0.00013699,2]
[421424726,1777625439000,-492.0,0.0001397,2]
[421424700,1777625439000,-3019.62384076,9.425e-05,2]
[421424715,1777625439000,-244.0,0.000127,2]
[421424699,1777625439000,-420.0,9.354e-05,2]
[421424693,1777625439000,-539.0,8.505e-05,2]
[421424677,1777625439000,-34707.68834592,8.505e-05,2]
[421424679,1777625439000,-300.0,8.505e-05,2]
[421424678,1777625439000,-300.0,8.505e-05,2]
[421424680,1777625439000,-300.0,8.505e-05,2]
[421424682,1777625439000,-300.0,8.505e-05,2]
[421424683,1777625439000,-300.0,8.505e-05,2]
[421424681,1777625439000,-300.0,8.505e-05,2]
[421424688,1777625439000,-300.0,8.505e-05,2]
[421424689,1777625439000,-300.0,8.505e-05,2]
[421424690,1777625439000,-300.0,8.505e-05,2]
[421424684,1777625439000,-300.0,8.505e-05,2]
[421424701,1777625439000,-720.0,9.541e-05,2]
[421424685,1777625439000,-300.0,8.505e-05,2]
[421424686,1777625439000,-300.0,8.505e-05,2]
[421424692,1777625439000,-300.0,8.505e-05,2]
[421424691,1777625439000,-300.0,8.505e-05,2]
[421424702,1777625439000,-1350.52880796,0.0001,2]
[421424704,1777625439000,-471.0,0.00010289,2]
[421424703,1777625439000,-256.00102481,0.00010131,2]
[421424697,1777625439000,-1680.0,9.353e-05,2]
[421424698,1777625439000,-420.0,9.354e-05,2]
[421424695,1777625439000,-151.0,9.08e-05,2]
[421424694,1777625439000,-600.0,8.674e-05,2]
[421424696,1777625439000,-151.0,9.08e-05,2]
[421424687,1777625439000,-300.0,8.505e-05,2]
[421424731,1777625439000,-537.6845,0.0001509,2]
[421424708,1777625439000,-176.04865274,0.00010496,2]
[421424732,1777625439000,-1818.07944943,0.0001509,2]
[421424762,1777625439000,-151.0,0.00016438,2]
[421424761,1777625439000,-233.250536,0.00016438,2]
[421424764,1777625439000,-151.0,0.00016438,2]
[421424763,1777625439000,-151.0,0.00016438,2]
[421424767,1777625439000,-288.885088,0.00016438,2]
[421424765,1777625439000,-151.0,0.00016438,2]
[421424766,1777625439000,-151.0,0.00016438,2]
[421424772,1777625439000,-320.823838,0.00016438,2]
[421424768,1777625439000,-151.0,0.00016438,2]
[421424769,1777625439000,-320.823838,0.00016438,2]
[421424770,1777625439000,-320.823838,0.00016438,2]
[421424760,1777625439000,-151.0,0.00016438,2]
[421424773,1777625439000,-320.823838,0.00016438,2]
[421424774,1777625439000,-320.823838,0.00016438,2]
[421424777,1777625439000,-320.823838,0.00016438,2]
[421424776,1777625439000,-320.823838,0.00016438,2]
[421424778,1777625439000,-320.823838,0.00016438,2]
[421424779,1777625439000,-320.823838,0.00016438,2]
[421424780,1777625439000,-320.823838,0.00016438,2]
[421424784,1777625439000,-320.823838,0.00016438,2]
[421424783,1777625439000,-320.823838,0.00016438,2]
[421424781,1777625439000,-320.823838,0.00016438,2]
[421424782,1777625439000,-320.823838,0.00016438,2]
[421424730,1777625439000,-270.64297941,0.0001509,2]
[421424775,1777625439000,-320.823838,0.00016438,2]
[421424758,1777625439000,-151.0,0.00016438,2]
[421424771,1777625439000,-320.823838,0.00016438,2]
[421424756,1777625439000,-180.854,0.00016438,2]
[421424759,1777625439000,-151.0,0.00016438,2]
[421424733,1777625439000,-332.65855057,0.0001509,2]
[421424735,1777625439000,-578.20924308,0.000152,2]
[421424734,1777625439000,-557.5788265,0.00015145,2]
[421424736,1777625439000,-599.60298507,0.00015255,2]
[421424742,1777625439000,-500.0,0.00015383,2]
[421424737,1777625439000,-621.78829552,0.0001531,2]
[421424739,1777625439000,-1000.0,0.00015367,2]
[421424738,1777625439000,-644.79446246,0.00015365,2]
[421424740,1777625439000,-791.0,0.00015367,2]
[421424744,1777625439000,-411.44049816,0.00015475,2]
[421424743,1777625439000,-668.65185757,0.0001542,2]
[421424741,1777625439000,-151.0,0.00015367,2]
[421424746,1777625439000,-2230.315306,0.00015638,2]
[421424757,1777625439000,-151.0,0.00016438,2]
[421424754,1777625439000,-151.0,0.00016438,2]
[421424755,1777625439000,-151.0,0.00016438,2]
[421424752,1777625439000,-151.0,0.00016438,2]
[421424751,1777625439000,-500.0,0.00016266,2]
[421424750,1777625439000,-566.39704985,0.00016186,2]
[421424749,1777625439000,-500.0,0.00016178,2]
[421424748,1777625439000,-373.15403617,0.00016131,2]
[421424747,1777625439000,-151.0,0.00016045,2]
[421424745,1777625439000,-557.5788265,0.00015638,2]
[421424753,1777625439000,-151.0,0.00016438,2]
[421424824,1777625440000,-151.0,0.00016438,2]
[421424826,1777625440000,-151.0,0.00016438,2]
[421424822,1777625440000,-739.230307,0.00016438,2]
[421424823,1777625440000,-151.0,0.00016438,2]
[421424821,1777625440000,-739.230314,0.00016438,2]
[421424819,1777625440000,-739.230314,0.00016438,2]
[421424818,1777625440000,-739.230314,0.00016438,2]
[421424825,1777625440000,-151.0,0.00016438,2]
[421424829,1777625440000,-151.0,0.00016438,2]
[421424816,1777625440000,-739.230314,0.00016438,2]
[421424827,1777625440000,-151.0,0.00016438,2]
[421424820,1777625440000,-739.230314,0.00016438,2]
[421424828,1777625440000,-151.0,0.00016438,2]
[421424840,1777625440000,-239.311095,0.00016438,2]
[421424832,1777625440000,-151.0,0.00016438,2]
[421424842,1777625440000,-239.311095,0.00016438,2]
[421424831,1777625440000,-151.0,0.00016438,2]
[421424835,1777625440000,-151.0,0.00016438,2]
[421424838,1777625440000,-245.84592,0.00016438,2]
[421424837,1777625440000,-151.0,0.00016438,2]
[421424833,1777625440000,-151.0,0.00016438,2]
[421424839,1777625440000,-239.311095,0.00016438,2]
[421424836,1777625440000,-151.0,0.00016438,2]
[421424841,1777625440000,-239.311095,0.00016438,2]
[421424834,1777625440000,-151.0,0.00016438,2]
[421424843,1777625440000,-239.311095,0.00016438,2]
[421424817,1777625440000,-173.509336,0.00016438,2]
[421424830,1777625440000,-151.0,0.00016438,2]
[421424814,1777625440000,-739.230314,0.00016438,2]
[421424788,1777625440000,-320.823834,0.00016438,2]
[421424811,1777625440000,-151.0,0.00016438,2]
[421424785,1777625440000,-320.823838,0.00016438,2]
[421424786,1777625440000,-320.823838,0.00016438,2]
[421424844,1777625440000,-239.311095,0.00016438,2]
[421424787,1777625440000,-320.823838,0.00016438,2]
[421424791,1777625440000,-151.0,0.00016438,2]
[421424801,1777625440000,-151.0,0.00016438,2]
[421424789,1777625440000,-151.451694,0.00016438,2]
[421424790,1777625440000,-151.0,0.00016438,2]
[421424800,1777625440000,-739.230314,0.00016438,2]
[421424798,1777625440000,-739.230314,0.00016438,2]
[421424792,1777625440000,-151.0,0.00016438,2]
[421424794,1777625440000,-739.230314,0.00016438,2]
[421424797,1777625440000,-739.230314,0.00016438,2]
[421424793,1777625440000,-204.918688,0.00016438,2]
[421424795,1777625440000,-739.230314,0.00016438,2]
[421424796,1777625440000,-739.230314,0.00016438,2]
[421424799,1777625440000,-151.0,0.00016438,2]
[421424802,1777625440000,-739.230314,0.00016438,2]
[421424803,1777625440000,-151.0,0.00016438,2]
[421424804,1777625440000,-739.230314,0.00016438,2]
[421424806,1777625440000,-151.0,0.00016438,2]
[421424807,1777625440000,-739.230314,0.00016438,2]
[421424810,1777625440000,-739.230314,0.00016438,2]
[421424808,1777625440000,-739.230314,0.00016438,2]
[421424805,1777625440000,-739.230314,0.00016438,2]
[421424809,1777625440000,-151.0,0.00016438,2]
[421424812,1777625440000,-739.230314,0.00016438,2]
[421424813,1777625440000,-151.0,0.00016438,2]
[421424846,1777625440000,-239.311095,0.00016438,2]
[421424815,1777625440000,-151.0,0.00016438,2]
[421424847,1777625440000,-239.311095,0.00016438,2]
[421424882,1777625440000,-1039.17308908,0.000176,2]
[421424883,1777625440000,-151.0,0.000176,2]
[421424879,1777625440000,-500.0,0.00017524,2]
[421424887,1777625440000,-151.0,0.000178,2]
[421424884,1777625440000,-500.0,0.00017639,2]
[421424880,1777625440000,-500.0,0.00017599,2]
[421424885,1777625440000,-154.66,0.00017685,2]
[421424886,1777625440000,-1303.71481362,0.000178,2]
[421424888,1777625440000,-239.612172,0.00017855,7]
[421424890,1777625440000,-69.02514275,0.00017855,2]
[421424889,1777625440000,-160.0,0.00017855,2]
[421424893,1777625440000,-1510.76932003,0.00017855,2]
[421424892,1777625440000,-149.57834597,0.00017855,2]
[421424891,1777625440000,-841.14869025,0.00017855,2]
[421424895,1777625440000,-151.0,0.000179,2]
[421424898,1777625440000,-500.0,0.0001795,2]
[421424896,1777625440000,-161.01232938,0.000179,2]
[421424897,1777625440000,-151.5,0.00017945,2]
[421424899,1777625440000,-4730.0,0.00017998,2]
[421424900,1777625440000,-4629.93999229,0.00017998,2]
[421424902,1777625440000,-500.0,0.00017999,2]
[421424901,1777625440000,-613.12,0.00017999,2]
[421424903,1777625440000,-500.0,0.00017999,2]
[421424904,1777625440000,-500.0,0.00017999,2]
[421424905,1777625440000,-503.67930027,0.00017999,2]
[421424906,1777625440000,-200.0,0.00017999,2]
[421424845,1777625440000,-239.311095,0.00016438,2]